[Event "12th WLC Weekend 2022"]
[Site "Eindhoven"]
[Date "2022.05.14"]
[Round "4.18"]
[White "Krenning, Jasper"]
[Black "Kools, Jasper"]
[Result "0-1"]
[ECO "B23"]
[WhiteElo "1736"]
[BlackElo "1774"]
[Annotator "NA RC COMBH"]
[PlyCount "98"]
[EventDate "2022.05.13"]
[EventType "swiss"]
[EventCountry "NED"]
[SourceTitle "playchess.com"]
[Source "ChessBase"]
[SourceQuality "1"]
[TimeControl "5400+30"]

1. e4 {[%emt 0:00:05]} e6 {[%emt 0:00:14]} 2. Nc3 {[%emt 0:00:12]} c5 {[%emt 0:00:11]} 3. f4 {[%emt 0:00:15]} d5 {[%emt 0:00:21]} 4. Nf3 {[%emt 0:00:10]} Nf6 {[%emt 0:02:22]} 5. Bb5+ {[%emt 0:02:07]} Bd7 {[%emt 0:05:53]} 6. Bxd7+ {[%emt 0:03:22]} Nbxd7 {[%emt 0:01:08]} 7. d3 {[%emt 0:00:54]} a6 {[%emt 0:02:28]} 8. a4 {[%emt 0:02:36]} Qc7 {[%emt 0:01:33]} 9. O-O {[%emt 0:00:51]} dxe4 {[%emt 0:00:48]} 10. dxe4 {[%emt 0:00:31]} Qc6 {[%emt 0:05:36]} 11. e5 {[%emt 0:10:12]} Ne4 {[%emt 0:02:11]} 12. Nxe4 {[%emt 0:00:29]} Qxe4 {[%emt 0:00:08]} 13. Re1 {[%emt 0:00:25]} Qc6 {[%emt 0:00:40]} 14. c4 {[%emt 0:02:22]} Be7 {[%emt 0:00:26]} 15. Qe2 {[%emt 0:03:25]} O-O-O {[%emt 0:02:19]} 16. b3 {[%emt 0:10:03]} h6 {[%emt 0:00:07]} 17. Be3 {[%emt 0:05:07]} Rdg8 {[%emt 0:00:51]} 18. Rad1 {[%emt 0:03:43]} g5 {[%emt 0:00:59]} 19. Rd3 {[%emt 0:01:35]} gxf4 {[%emt 0:00:35]} 20. Bxf4 {[%emt 0:00:18]} Nf8 {[%emt 0:00:59]} 21. Qe4 {[%emt 0:07:01]} Qxe4 {[%emt 0:00:13]} 22. Rxe4 {[%emt 0:00:13]} Ng6 {[%emt 0:01:26]} 23. Bg3 {[%emt 0:08:08]} Rd8 {[%emt 0:01:35]} 24. Ree3 {[%emt 0:00:38]} Kc7 {[%emt 0:00:14]} 25. h4 {[%emt 0:03:48]} h5 {[%emt 0:06:17]} 26. Kf2 {[%emt 0:00:40]} Kc6 {[%emt 0:00:20]} 27. Ke2 {[%emt 0:02:49]} Rhg8 {[%emt 0:01:40]} 28. Rxd8 {[%emt 0:02:20]} Rxd8 {[%emt 0:00:49]} 29. Rd3 {[%emt 0:00:17]} b5 {[%emt 0:00:34]} 30. axb5+ {[%emt 0:00:49]} axb5 {[%emt 0:00:05]} 31. Rxd8 {[%emt 0:00:19]} Bxd8 {[%emt 0:00:04]} 32. Ng5 {[%emt 0:04:11]} Bxg5 {[%emt 0:00:09]} 33. hxg5 {[%emt 0:00:19]} Ne7 {[%emt 0:02:08]} 34. Kd3 {[%emt 0:02:34]} b4 {[%emt 0:01:55]} 35. Bf2 {[%emt 0:05:35]} Kb6 {[%emt 0:00:09]} 36. Kc2 {[%emt 0:00:33]} Nc6 {[%emt 0:01:09]} 37. Bg3 {[%emt 0:00:38]} Nd4+ {[%emt 0:01:24]} 38. Kb2 {[%emt 0:00:24]} Ne2 {[%emt 0:05:59]} 39. Bh2 {[%emt 0:09:11]} Kc6 {[%emt 0:04:01]} 40. Kc2 {[%emt 0:00:18]} Nd4+ {[%emt 0:00:50]} 41. Kb2 {[%emt 0:00:10]} Nf5 {[%emt 0:00:49]} 42. Bf4 {[%emt 0:01:56]} Nh4 {[%emt 0:00:17]} 43. g3 {[%emt 0:00:26]} Nf3 {[%emt 0:00:51]} 44. Ka2 {[%emt 0:01:22]} Ne1 {[%emt 0:01:42]} 45. g6 {[%emt 0:04:09]} fxg6 {[%emt 0:00:14]} 46. Bg5 {[%emt 0:00:20]} Nf3 {[%emt 0:00:53]} 47. Bf6 {[%emt 0:01:00]} g5 {[%emt 0:00:05]} 48. Kb2 {[%emt 0:00:33]} h4 {[%emt 0:00:08]} 49. Bxg5 {[%emt 0:02:59]} h3 {[%emt 0:00:06]} 0-1

[Event "12th WLC Weekend 2022"]
[Site "Eindhoven"]
[Date "2022.05.14"]
[Round "4.19"]
[White "Oskam, Julian"]
[Black "Klapwijk, Leo"]
[Result "1-0"]
[ECO "A16"]
[WhiteElo "1627"]
[BlackElo "1828"]
[Annotator "NA RC COMBH"]
[PlyCount "73"]
[EventDate "2022.05.13"]
[EventType "swiss"]
[EventCountry "NED"]
[SourceTitle "playchess.com"]
[Source "ChessBase"]
[SourceQuality "1"]
[TimeControl "5400+30"]

1. c4 {[%emt 0:00:03]} Nf6 {[%emt 0:02:36]} 2. g3 {[%emt 0:00:17]} g6 {[%emt 0:01:42]} 3. Bg2 {[%emt 0:00:32]} Bg7 {[%emt 0:00:25]} 4. Nc3 {[%emt 0:00:22]} c6 {[%emt 0:01:04]} 5. Nf3 {[%emt 0:01:50]} e6 {[%emt 0:00:54]} 6. e4 {[%emt 0:03:41]} d6 {[%emt 0:04:18]} 7. d4 {[%emt 0:00:39]} Nbd7 {[%emt 0:05:30]} 8. Bf4 {[%emt 0:07:04]} Qe7 {[%emt 0:00:31]} 9. Qd2 {[%emt 0:06:27]} h6 {[%emt 0:03:58]} 10. h3 {[%emt 0:04:18]} g5 {[%emt 0:06:00]} 11. Be3 {[%emt 0:01:19]} Nb6 {[%emt 0:02:48]} 12. Qd3 {[%emt 0:04:27]} Bd7 {[%emt 0:05:22]} 13. a4 {[%emt 0:02:50]} a5 {[%emt 0:03:56]} 14. e5 {[%emt 0:01:11]} Nh5 {[%emt 0:02:24]} 15. exd6 {[%emt 0:04:03]} Qd8 {[%emt 0:00:11]} 16. c5 {[%emt 0:00:37]} Nd5 {[%emt 0:00:50]} 17. Nxd5 {[%emt 0:01:00]} exd5 {[%emt 0:01:00]} 18. Qe2 {[%emt 0:04:21]} Be6 {[%emt 0:02:06]} 19. O-O {[%emt 0:01:36]} O-O {[%emt 0:00:32]} 20. Ne5 {[%emt 0:15:31]} Nf6 {[%emt 0:00:28]} 21. b4 {[%emt 0:01:55]} axb4 {[%emt 0:02:49]} 22. Rfb1 {[%emt 0:00:52]} Ne4 {[%emt 0:00:24]} 23. Bxe4 {[%emt 0:00:29]} dxe4 {[%emt 0:00:41]} 24. Rxb4 {[%emt 0:01:49]} Ra7 {[%emt 0:01:47]} (24... Bxh3 {was necessary.} 25. Rxb7 Bxe5) 25. Kh2 {[%emt 0:06:24]} Kh7 {[%emt 0:00:45]} 26. Qc2 {[%emt 0:00:50]} Bd5 {[%emt 0:01:04]} (26... f5 $16 27. Rab1 Bxe5) 27. Rab1 {[%emt 0:01:45]} Qa8 $18 {[%emt 0:03:20]} (27... Bxe5 28. dxe5 f5 29. Rxb7+ Rf7) 28. Nd7 {[%emt 0:01:08]} Rd8 {[%emt 0:05:38]} 29. Nb6 {[%emt 0:00:18]} Qb8 {[%emt 0:00:11]} 30. Nxd5 {[%emt 0:00:22]} cxd5 {[%emt 0:00:35]} 31. Qb3 {[%emt 0:00:08]} Qa8 {[%emt 0:04:24]} 32. Qxd5 {[%emt 0:01:05]} Rxa4 {[%emt 0:00:51]} 33. Qxe4+ {[%emt 0:00:17]} Kh8 {[%emt 0:00:02]} 34. Rxa4 {[%emt 0:01:11]} Qxa4 {[%emt 0:00:26]} 35. Rxb7 {[%emt 0:00:10]} Re8 {[%emt 0:07:20]} 36. Qd5 {[%emt 0:01:23]} Qa6 {[%emt 0:07:03]} 37. Qxf7 {[%emt 0:01:00]} 1-0

[Event "12th WLC Weekend 2022"]
[Site "Eindhoven"]
[Date "2022.05.14"]
[Round "4.20"]
[White "Verweij, David"]
[Black "Krueger, Andre"]
[Result "1-0"]
[ECO "A04"]
[WhiteElo "1728"]
[BlackElo "1970"]
[Annotator "TA"]
[PlyCount "65"]
[EventDate "2022.05.13"]
[EventType "swiss"]
[EventCountry "NED"]
[SourceTitle "playchess.com"]
[Source "ChessBase"]
[SourceQuality "1"]
[TimeControl "5400+30"]

{[%evp 18,65,3,0,29,0,23,-12,-8,-22,-20,-29,-40,-35,-19,-22,-20,-36,-37,-62,-41,-76,-62,-77,-63,-148,-124,-135,-138,-151,-91,-134,-133,-153,-118,-171,-129,-133,-75,-76,-77,-80,-76,-77,-60,-80,-83,-77,178,175]} 1. e4 {[%emt 0:00:03]} c5 {[%emt 0:00:07]} 2. d3 {[%emt 0:00:12]} Nc6 {[%emt 0:01:36]} 3. g3 {[%emt 0:00:07]} g6 {[%emt 0:01:15]} 4. Bg2 {[%emt 0:00:07]} Bg7 {[%emt 0:00:09]} 5. Nf3 {[%emt 0:00:25]} d6 {[%emt 0:05:53]} 6. O-O {[%emt 0:00:17]} e6 {[%emt 0:00:50]} 7. c3 {[%emt 0:01:29]} e5 {[%emt 0:06:07]} 8. Nbd2 {[%emt 0:00:38]} Nge7 {[%emt 0:00:08]} 9. a3 {[%emt 0:00:11]} O-O {[%emt 0:02:42]} 10. b4 {[%emt 0:03:38]} h6 {[%emt 0:02:31] A04: Unusual lines after 1 Nf3 and King's Indian Attack.} 11. Bb2 {[%emt 0:06:45] is the legacy move (11.Nb3).} Be6 {[%emt 0:09:33][%cal Bc8e6,Be6d5,Bd5c6][%mdl 32]} 12. d4 {[%emt 0:04:56]} (12. b5 $5 {[%cal Rb5c6]} Na5 13. c4 $11) 12... exd4 {[%emt 0:01:47] The position is equal.} 13. cxd4 {[%emt 0:02:27]} cxb4 {[%emt 0:05:04] [#]} 14. Rb1 $146 {[%emt 0:01:50]} (14. axb4 {is interesting.} Nxb4 15. d5 Bxb2 16. Rb1) ({Predecessor:} 14. axb4 Nxb4 15. Ba3 a5 16. d5 Bd7 17. Rb1 Bb5 18. Re1 Bd3 19. Bxb4 Bxb1 20. Ba3 {1-0 (41) Savicevic,V (2411)-Stojanovic,D (2433) Leskovac 2002}) 14... d5 {[%emt 0:03:16]} 15. axb4 {[%emt 0:01:02]} dxe4 {[%emt 0:05:17]} 16. Nxe4 {[%emt 0:00:58]} Bd5 {[%emt 0:10:25]} 17. Re1 {[%emt 0:01:39]} Nxb4 {[%emt 0:06:35]} 18. Ba3 {[%emt 0:02:21]} a5 {[%emt 0:00:06]} 19. Nc3 {[%emt 0:06:31]} Bc6 {[%emt 0:04:47]} 20. Qb3 {[%emt 0:17:36]} Ned5 {[%emt 0:02:02]} 21. Ne5 {[%emt 0:12:17]} (21. Nxd5 $15 Bxd5 22. Qa4) 21... Nxc3 $17 {[%emt 0:01:28]} 22. Nxc6 {[%emt 0:00:16]} bxc6 {[%emt 0:00:27]} 23. Qxc3 {[%emt 0:01:03]} Qxd4 {[%emt 0:00:29]} (23... Bxd4 $142 24. Qd2 Rb8) 24. Qf3 {[%emt 0:09:11] [#]} Rab8 $1 {[%emt 0:08:39]} 25. Rbd1 {[%emt 0:06:11]} Qf6 {[%emt 0:03:13]} 26. Qb3 {[%emt 0:02:50]} (26. Qxf6 $17 Bxf6 27. Rd6) 26... Qc3 {[%emt 0:03:16]} 27. Qa4 {[%emt 0:01:15]} Rfe8 {[%emt 0:08:09]} ({Black should try} 27... c5 {...Nd3 is the strong threat.} 28. Re2 Rbd8) 28. Rxe8+ {[%emt 0:05:20]} Rxe8 {[%emt 0:00:01]} 29. Qxa5 {[%emt 0:02:20]} c5 {[%emt 0:04:53] And now ...Re1+ would win.} 30. Bf1 {[%emt 0:02:34]} Bd4 {[%emt 0:02:42][%cal Od4f2] White must now prevent ...Bxf2+!} 31. Bxb4 {[%emt 0:02:55]} cxb4 {[%emt 0:00:01]} 32. Qd5 {[%emt 0:00:29]} Bc5 {[%emt 0:02:21][%mdl 8192] [#]} ({Resist} 32... Bxf2+ 33. Kxf2 Rc8 34. Be2 $16) (32... Bb6 $17 {stays on course. aiming for ...Rd8.} 33. Rd3 Qc5 34. Qxc5 Bxc5) 33. Bc4 $1 {[%emt 0:00:58] Weighted Error Value: White=0.19 (very precise) /Black=0.38} 1-0

[Event "12th WLC Weekend 2022"]
[Site "Eindhoven"]
[Date "2022.05.14"]
[Round "4.21"]
[White "Van Zon, Paul"]
[Black "Broekhuis, Jan"]
[Result "1-0"]
[ECO "D36"]
[WhiteElo "2000"]
[BlackElo "1845"]
[Annotator "TA"]
[PlyCount "89"]
[EventDate "2022.05.13"]
[EventType "swiss"]
[EventCountry "NED"]
[SourceTitle "playchess.com"]
[Source "ChessBase"]
[SourceQuality "1"]
[TimeControl "5400+30"]

{[%evp 19,89,20,20,20,12,23,17,6,5,16,14,-17,-30,-71,-95,-87,66,77,77,52,60,62,57,50,65,54,88,9,136,134,216,209,223,238,188,84,463,487,438,151,266,250,267,228,229,190,204,191,201,202,196,148,159,-21,-19,-13,-12,-178,-54,-62,305,279,429,397,727,705,772,757,739,621,29989,29990]} 1. d4 {[%emt 0:00:02]} d5 {[%emt 0:00:21]} 2. c4 {[%emt 0:00:06]} e6 {[%emt 0:00:33]} 3. Nc3 {[%emt 0:00:21]} Nf6 {[%emt 0:00:19]} 4. cxd5 {[%emt 0:00:23]} exd5 {[%emt 0:00:31]} 5. Bg5 {[%emt 0:00:11]} Nbd7 {[%emt 0:00:11]} 6. e3 {[%emt 0:00:36]} c6 {[%emt 0:00:30]} 7. Bd3 {[%emt 0:00:34]} Bd6 {[%emt 0:00:58]} 8. Nge2 {[%emt 0:03:28]} O-O {[%emt 0:01:28]} 9. Qc2 {[%emt 0:00:58]} h6 {[%emt 0:01:18]} 10. Bh4 {[%emt 0:01:29]} Re8 {[%emt 0:01:24]} 11. Bg3 {[%emt 0:13:15] D36: Queen's Gambit Declined: Exchange Variation: Main line (5 Bg5 c6 6 Qc2).} Nf8 {[%emt 0:04:32]} 12. O-O {[%emt 0:00:42]} Bg4 {[%emt 0:05:24][%cal Bc8g4,Bg4h5,Bh5g6][%mdl 32]} 13. f3 {[%emt 0:03:13] The position is equal.} Bh5 {[%emt 0:01:34]} 14. Bf2 {[%emt 0:05:15]} Bg6 {[%emt 0:04:03] [#]} 15. e4 $146 {[%emt 0:09:54]} ({Predecessor:} 15. Kh1 Bxd3 16. Qxd3 Qe7 17. Ng3 Bxg3 18. hxg3 Ng6 19. g4 Qe6 20. b4 h5 21. g5 {0-1 (44) Vifleemskaia,S (1926)-Levine,J (2073) Chess.com INT 2021}) 15... dxe4 {[%emt 0:01:41]} 16. fxe4 {[%emt 0:00:04]} Ng4 {[%emt 0:01:03]} 17. h3 {[%emt 0:11:02]} Nf6 {[%emt 0:04:17]} (17... Nxf2 $17 18. Rxf2 c5) 18. Rad1 $36 {[%emt 0:03:57][%mdl 2048] White is in control.} Bc7 {[%emt 0:03:25]} 19. e5 {[%emt 0:06:48]} Nd5 {[%emt 0:03:10] aiming for ...Nb4.} 20. Bxg6 {[%emt 0:02:08]} Nxg6 {[%emt 0:00:32]} 21. Ne4 {[%emt 0:01:01]} Qe7 {[%emt 0:02:07]} 22. N2g3 {[%emt 0:04:02][%cal Be2g3,Bg3f5,Bf5e3,Be3g4,Bg4e5][%mdl 32]} Nh4 {[%emt 0:09:42] [#] Against Nf5} 23. Qe2 {[%emt 0:02:06]} ({White should try} 23. Nh5 $1 $16 Ng6 24. a3) 23... Rad8 {[%emt 0:07:38]} (23... f5 $1 $11 {keeps the balance.} 24. exf6 Nxf6 25. Nxf6+ (25. Qc4+ Nd5 $15) 25... Qxf6) 24. Qg4 $16 {[%emt 0:01:55]} Ng6 {[%emt 0:03:17]} (24... g5 $16) 25. Nf5 $18 {[%emt 0:01:13]} Qe6 {[%emt 0:01:01]} 26. Nc5 {[%emt 0:07:56]} Qc8 {[%emt 0:01:34]} 27. e6 {[%emt 0:02:29]} (27. Bh4 Ne3 28. Nxe3 Qxg4 29. hxg4 (29. Nxg4 Nxh4 30. Ne3 Bb6 $11) 29... Nxh4 $11) (27. Rde1 $18 {is more deadly.}) 27... Ndf4 $2 {[%emt 0:03:21][%mdl 8192]} (27... fxe6 $16 {is more resistant.} 28. Nxh6+ Kh7) 28. exf7+ {[%emt 0:04:24]} Kxf7 {[%emt 0:01:45] White must now prevent ...h5.} 29. Be3 $2 {[%emt 0:05:02]} (29. Bg3 $18 {[%cal Rg3f4]} Ne2+ 30. Kh2 Bxg3+ 31. Nxg3+ Nef4 32. Nf5 (32. Qh5 Kg8 $15)) 29... Rxe3 {[%emt 0:16:44]} (29... h5 $16 30. Qg5 Rxe3 31. Nxe3 Kg8) 30. Nxe3 {[%emt 0:00:05] Dancing on a razor blade.} Qxg4 {[%emt 0:00:26]} 31. Nxg4 {[%emt 0:00:04]} Kg8 {[%emt 0:00:23]} 32. Rfe1 {[%emt 0:01:46] Inhibits Ne2+.} (32. Nxb7 Rb8 $11) 32... h5 {[%emt 0:02:52]} 33. Ne5 {[%emt 0:03:24] Hoping for Nxg6.} (33. Nxb7 Rb8 34. Ne5 Nxe5 35. dxe5 Rxb7 $15) 33... Nh4 {[%emt 0:01:52]} 34. g3 {[%emt 0:03:16]} (34. Nxb7 $6 Rb8 $16) 34... Nxh3+ {[%emt 0:01:25]} 35. Kh2 {[%emt 0:00:07]} Nf2 {[%emt 0:02:34] [#]} 36. Rd2 {[%emt 0:02:36]} (36. Nxb7 Rb8 37. gxh4 (37. Rd2 Ng4+ 38. Kh3 Nxe5 $11) 37... Nxd1 38. Rxd1 Rxb7 $15) (36. Ne6 $1 $16 {[%cal Re6d8]} Bxe5 37. Nxd8 Nxd1 38. Rxd1 Nf3+ 39. Kg2 Nxd4 40. Nxb7) 36... Ng4+ $1 $11 {[%emt 0:03:20]} 37. Kh3 {[%emt 0:02:33]} Nxe5 {[%emt 0:03:23]} 38. Ne6 $2 {[%emt 0:00:25]} (38. Nxb7 $11 {and White has nothing to worry.} Rb8 39. Rxe5 (39. gxh4 Ng6 $17) (39. dxe5 Nf3 $15) 39... Bxe5 40. dxe5) 38... Nhf3 {[%emt 0:01:24]} ({Better is} 38... Nef3 $19 39. Nxd8 Nxe1 40. gxh4 Bxd8) 39. Nxd8 $15 {[%emt 0:00:20][%cal Od2d1] Strongly threatening Rdd1!} Nxe1 $4 {[%emt 0:00:44][%mdl 8192]} (39... Nxd2 $15 {keeps the upper hand.} 40. Rxe5 Bxe5 41. dxe5 Nf3) 40. dxe5 {[%emt 0:00:11][%cal Bd4e5,Be5e6,Be6e7][%mdl 32] KRN-KBN} Nf3 {[%emt 0:00:33]} (40... Bxe5 $142 41. Rd7 a6 42. Rxb7 c5) 41. e6 $18 {[%emt 0:00:53] Threatening mate with e7.} ({Less strong is} 41. Rd7 Bxd8 42. Rxd8+ Kh7 $18) 41... Ng5+ $2 {[%emt 0:01:10]} (41... Nxd2 42. e7 Bxd8 43. e8=Q+ Kh7 44. Qxh5+ Kg8 45. Qe8+ Kh7 46. Qxd8 $18) (41... Kf8) 42. Kh4 {[%emt 0:00:09] White wants to mate with e7.} Ne4 {[%emt 0:00:34]} 43. e7 {[%emt 0:00:34]} Nf6 {[%emt 0:00:36]} 44. Ne6 {[%emt 0:00:40] And now Ng5 would win.} Bb6 {[%emt 0:01:14]} 45. Ng5 {[%emt 0:00:15] Weighted Error Value: White=0.38/Black=0.91} 1-0

[Event "12th WLC Weekend 2022"]
[Site "Eindhoven"]
[Date "2022.05.14"]
[Round "4.22"]
[White "De Vries, Leon"]
[Black "Molenaar, Toine"]
[Result "1/2-1/2"]
[ECO "D00"]
[WhiteElo "1951"]
[BlackElo "1823"]
[Annotator "TA"]
[PlyCount "71"]
[EventDate "2022.05.13"]
[EventType "swiss"]
[EventCountry "NED"]
[SourceTitle "playchess.com"]
[Source "ChessBase"]
[SourceQuality "1"]
[TimeControl "5400+30"]

{[%evp 9,71,-18,0,-10,14,-10,0,-8,0,0,0,-31,-1,-5,8,0,0,11,0,3,51,54,99,97,98,30,39,28,33,-106,0,-35,97,23,26,-45,-57,-59,-56,-52,-49,-45,-47,-44,-41,-44,0,0,0,0,18,17,27,18,41,35,55,50,50,38,42,18,22,18]} 1. d4 {[%emt 0:00:05]} d5 {[%emt 0:00:06]} 2. Nc3 {[%emt 0:00:09]} Nf6 {[%emt 0:00:30]} 3. Bf4 {[%emt 0:00:11]} e6 {[%emt 0:00:57]} 4. Nb5 {[%emt 0:00:26]} Na6 {[%emt 0:01:32]} 5. e3 {[%emt 0:00:27]} c6 {[%emt 0:04:42]} 6. Nc3 {[%emt 0:00:13] D00: 1 d4 d5: Unusual lines.} Nb8 {[%emt 0:01:06]} 7. Nf3 {[%emt 0:01:17]} Be7 {[%emt 0:00:48]} 8. h3 {[%emt 0:01:14]} O-O {[%emt 0:01:49]} 9. Bd3 {[%emt 0:01:22]} Nbd7 {[%emt 0:01:51]} 10. Ne5 {[%emt 0:03:58]} c5 {[%emt 0:03:32]} 11. O-O {[%emt 0:04:33] [#]} Ne8 $146 {[%emt 0:18:38]} ({Predecessor:} 11... a6 12. b3 b5 13. Nc6 Qe8 14. Re1 Bb7 15. Nxe7+ Qxe7 16. Bg5 c4 17. Bf1 Qb4 18. Qd2 Rac8 19. a3 Qd6 {1-0 (30) Boehning,K (2199)-Meissner,F (1741) Wil 2020}) 12. Nxd7 {[%emt 0:04:37]} Bxd7 {[%emt 0:03:01]} 13. dxc5 {[%emt 0:01:03]} Bxc5 {[%emt 0:01:26]} 14. e4 {[%emt 0:01:42]} Qf6 {[%emt 0:10:24]} (14... Bc6 $11) 15. Qg4 $14 {[%emt 0:06:09]} Qe7 {[%emt 0:14:54]} 16. exd5 {[%emt 0:07:32] aiming for Rae1.} e5 {[%emt 0:02:37][%cal Be6e5,Be5e4][%mdl 32] [#]} 17. Qh5 {[%emt 0:01:04] White is much more active. The black rooks are badly placed.} f5 $11 {[%emt 0:02:11]} 18. Rae1 {[%emt 0:04:50]} e4 {[%emt 0:01:05]} 19. g4 {[%emt 0:15:00] [#]} (19. Bc4 $14 {stays ahead.} Nd6 20. Bb3) 19... Qf6 {[%emt 0:05:18]} (19... Bd6 $1 $17 {[%cal Rd6f4]} 20. Bc4 b5) 20. Bc4 {[%emt 0:08:45] Strongly threatening d6+.} fxg4 {[%emt 0:02:32] [#]} (20... Bd6 $1 $15 {keeps the upper hand.} 21. g5 Qd4) 21. d6+ {[%emt 0:00:30] Really sharp!} (21. Rxe4 Nd6 22. Be3 Nxc4 23. Bxc5 Nd2 24. hxg4 (24. Bxf8 $2 Rxf8 25. Rxg4 Nxf1 $19) 24... Rfe8 25. Rxe8+ Rxe8 $19) (21. Nxe4 Qxf4 22. d6+ (22. Nxc5 $2 Nf6 $19) 22... Kh8 23. Qxc5 (23. Nxc5 $2 Rf5 $19) 23... Rc8 $17) (21. Be3 $1 $16 {[%cal Re3c5]} Bd6 22. Nxe4 Qxb2 23. Bd3 (23. hxg4 Nf6 $14)) 21... Kh8 {[%emt 0:00:36]} 22. Qxc5 {[%emt 0:00:44]} ({Of course not} 22. Nxe4 Qxf4 23. Qxc5 (23. Nxc5 $2 Rf5 $19) 23... Rc8 $17) ({White should try} 22. Be3 $11 Bxd6 23. hxg4) 22... Qxf4 $15 {[%emt 0:00:29]} 23. Rxe4 {[%emt 0:01:56]} Qxd6 {[%emt 0:01:53]} (23... Qf6 {with more complications.} 24. Qe5 Nxd6 25. Qxf6 Rxf6 26. Re7 Bc6) 24. Qxd6 {[%emt 0:00:53]} Nxd6 {[%emt 0:00:02][%cal Be8d6,Bd6c4,Bc4b2][%mdl 32]} 25. Rd4 {[%emt 0:00:40]} Nxc4 {[%emt 0:01:24]} 26. Rxd7 {[%emt 0:00:13]} gxh3 {[%emt 0:00:56]} 27. Re1 {[%emt 0:03:26]} Rf6 {[%emt 0:02:14]} 28. Ree7 {[%emt 0:01:00]} Rg6+ {[%emt 0:00:11]} 29. Kh2 {[%emt 0:00:11]} Nxb2 {[%emt 0:03:12]} 30. Rxb7 {[%emt 0:00:24]} Nc4 {[%emt 0:00:26]} 31. Rxa7 {[%emt 0:00:15][%cal Ra7a8]} Rb8 {[%emt 0:00:52]} 32. Nd5 {[%emt 0:03:01]} Nd6 {[%emt 0:04:07]} 33. Nf4 {[%emt 0:01:36]} Rf6 {[%emt 0:04:24]} 34. Nxh3 {[%emt 0:00:47]} Nf5 {[%emt 0:00:39]} 35. Rf7 {[%emt 0:02:48]} Rxf7 $1 {[%emt 0:01:35]} 36. Rxf7 {[%emt 0:00:09] Weighted Error Value: White=0.24 (precise) /Black=0.23 (precise)} 1/2-1/2

[Event "12th WLC Weekend 2022"]
[Site "Eindhoven"]
[Date "2022.05.14"]
[Round "4.23"]
[White "Geboers, Jimmy"]
[Black "Van Kuijk, Vadim"]
[Result "0-1"]
[ECO "D48"]
[WhiteElo "1845"]
[BlackElo "1898"]
[Annotator "NA RC COMBH"]
[PlyCount "74"]
[EventDate "2022.05.13"]
[EventType "swiss"]
[EventCountry "NED"]
[SourceTitle "playchess.com"]
[Source "ChessBase"]
[SourceQuality "1"]
[TimeControl "5400+30"]

1. d4 {[%emt 0:02:28]} d5 {[%emt 0:00:02]} 2. c4 {[%emt 0:00:09]} c6 {[%emt 0:00:04]} 3. Nc3 {[%emt 0:00:06]} Nf6 {[%emt 0:00:04]} 4. e3 {[%emt 0:00:06]} e6 {[%emt 0:00:07]} 5. Nf3 {[%emt 0:00:08]} Nbd7 {[%emt 0:00:11]} 6. Bd3 {[%emt 0:00:09]} dxc4 {[%emt 0:00:06]} 7. Bxc4 {[%emt 0:00:07]} b5 {[%emt 0:00:04]} 8. Bd3 {[%emt 0:00:08]} a6 {[%emt 0:00:43]} 9. e4 {[%emt 0:00:13]} c5 {[%emt 0:00:08]} 10. d5 {[%emt 0:00:14]} Qc7 {[%emt 0:04:20]} 11. O-O {[%emt 0:02:19]} Be7 {[%emt 0:04:37]} 12. dxe6 {[%emt 0:05:00]} fxe6 {[%emt 0:00:09]} 13. Ng5 {[%emt 0:03:29]} Nf8 {[%emt 0:01:50]} 14. f4 {[%emt 0:01:35]} h6 {[%emt 0:03:20]} 15. Nf3 {[%emt 0:02:22]} Bb7 {[%emt 0:01:25]} 16. e5 {[%emt 0:01:05]} Nd5 {[%emt 0:01:20]} 17. Nxd5 {[%emt 0:06:06]} Bxd5 {[%emt 0:00:14]} 18. Qc2 {[%emt 0:00:58]} O-O-O {[%emt 0:01:04]} 19. Be3 {[%emt 0:04:46]} g5 {[%emt 0:05:20]} 20. fxg5 {[%emt 0:04:01]} hxg5 {[%emt 0:00:40]} 21. Bxg5 {[%emt 0:01:14]} Bxg5 {[%emt 0:03:29]} 22. Nxg5 {[%emt 0:00:08]} Qxe5 $16 {[%emt 0:10:22]} (22... Nd7 $11 {keeps the balance.} 23. Nf7 {[#]} Nxe5 $1 24. Nxe5 (24. Nxh8 Ng4 $11) 24... Qxe5 25. Qxc5+ Kb8) 23. Qxc5+ {[%emt 0:00:21]} Kb7 {[%emt 0:00:35]} 24. Nf3 {[%emt 0:06:50]} Qh5 {[%emt 0:00:37]} 25. Qf2 {[%emt 0:00:49]} Nd7 {[%emt 0:05:55]} 26. a4 {[%emt 0:04:30]} Ne5 {[%emt 0:02:29]} 27. Be2 {[%emt 0:02:16]} Rdg8 $2 {[%emt 0:02:32]} (27... Nxf3+ $19 28. gxf3 Rdg8+ 29. Kh1 Rg4 30. a5 $15 (30. axb5 Rh4 31. Kg1 Rxh2 32. Qg3 Rxe2 33. Qg7+ Kb8)) 28. Kh1 {[%emt 0:09:29]} Ng4 $1 {[%emt 0:04:29]} 29. Qg1 {[%emt 0:01:43]} Nxh2 {[%emt 0:20:01]} 30. Nxh2 {[%emt 0:00:13]} Qxh2+ {[%emt 0:05:57]} 31. Qxh2 {[%emt 0:00:12]} Bxg2+ {[%emt 0:00:03]} 32. Kg1 {[%emt 0:00:51]} Bxf1+ {[%emt 0:00:07]} 33. Kxf1 {[%emt 0:02:19]} Rxh2 {[%emt 0:00:04]} 34. Bf3+ {[%emt 0:00:03]} Kb6 {[%emt 0:01:37]} 35. axb5 {[%emt 0:02:49]} axb5 {[%emt 0:00:50]} 36. Rc1 {[%emt 0:00:26]} Rf8 {[%emt 0:00:56]} 37. Rc6+ {[%emt 0:00:56]} Ka5 {[%emt 0:00:04]} 0-1